[Event "EYCC 2017"]
[Site "Mamaia"]
[Date "2017.09.14"]
[Round "9"]
[White "Salemgareev, Tagir"]
[Black "Pultinevicius, Paulius"]
[Result "1-0"]
[ECO "E90"]
[WhiteElo "2354"]
[BlackElo "2381"]
[Annotator "NA RC"]
[PlyCount "65"]
[EventDate "2017.??.??"]
[EventType "swiss"]
[EventCountry "ROU"]
[SourceTitle "playchess.com"]
[Source "ChessBase"]
[SourceQuality "1"]
[TimeControl "40/5400+30:1800+30"]

1. d4 {[%emt 0:00:00]} Nf6 {[%emt 0:00:01]} 2. c4 {[%emt 0:00:00]} g6 {[%emt 0:00:04]} 3. Nc3 {[%emt 0:00:00]} Bg7 {[%emt 0:00:45]} 4. e4 {[%emt 0:00:00]} d6 {[%emt 0:00:08]} 5. Nf3 {[%emt 0:00:01]} O-O {[%emt 0:00:06]} 6. h3 {[%emt 0:00:06]} Na6 {[%emt 0:01:16]} 7. Be3 {[%emt 0:00:41]} e5 {[%emt 0:01:28]} 8. d5 {[%emt 0:01:00]} Nc5 {[%emt 0:00:46]} 9. Nd2 {[%emt 0:00:57]} a5 {[%emt 0:00:21]} 10. g4 {[%emt 0:00:15]} c6 {[%emt 0:02:18]} 11. Be2 {[%emt 0:02:34]} a4 {[%emt 0:06:13]} 12. g5 {[%emt 0:08:56]} Ne8 {[%emt 0:00:39]} 13. h4 {[%emt 0:00:52]} Qa5 {[%emt 0:01:02]} 14. Rb1 {[%emt 0:10:31]} f5 {[%emt 0:04:26]} 15. f3 {[%emt 0:02:25]} fxe4 {[%emt 0:37:07]} 16. fxe4 {[%emt 0:04:32]} Nc7 {[%emt 0:00:54]} 17. h5 {[%emt 0:17:03]} Bd7 {[%emt 0:02:33]} 18. h6 {[%emt 0:01:36]} Bh8 {[%emt 0:00:03]} 19. Qc2 {[%emt 0:07:21]} N7a6 {[%emt 0:05:26]} 20. a3 {[%emt 0:02:24]} Rac8 {[%emt 0:05:41]} 21. Rf1 {[%emt 0:11:43]} Bh3 {[%emt 0:09:41]} 22. Rxf8+ {[%emt 0:17:26]} Rxf8 {[%emt 0:00:01]} 23. b4 {[%emt 0:02:57]} axb3 {[%emt 0:00:05]} 24. Nxb3 {[%emt 0:00:05]} Nxb3 {[%emt 0:06:13]} 25. Qxb3 {[%emt 0:00:23]} Nc5 {[%emt 0:02:14]} 26. Qb4 {[%emt 0:00:20]} Qd8 {[%emt 0:00:49]} 27. Qb6 {[%emt 0:01:44]} Qc8 {[%emt 0:00:40]} 28. dxc6 {[%emt 0:02:38]} bxc6 {[%emt 0:01:02]} 29. Bxc5 {[%emt 0:00:19]} dxc5 {[%emt 0:00:14]} 30. Qa7 {[%emt 0:00:08]} Be6 {[%emt 0:06:38]} 31. Rb7 {[%emt 0:00:34]} Bf7 {[%emt 0:00:13]} 32. Rd7 {[%emt 0:00:21]} Qb8 {[%emt 0:02:43]} 33. Rxf7 {[%emt 0:00:12]} 1-0

[Event "EYCC 2017"]
[Site "Mamaia"]
[Date "2017.09.14"]
[Round "9"]
[White "Morgunov, Marc"]
[Black "Popov, Konstantin"]
[Result "1-0"]
[ECO "B50"]
[WhiteElo "2199"]
[BlackElo "2141"]
[Annotator "RC"]
[PlyCount "119"]
[EventDate "2017.??.??"]
[EventType "swiss"]
[EventCountry "ROU"]
[SourceTitle "playchess.com"]
[Source "ChessBase"]
[SourceQuality "1"]
[TimeControl "40/5400+30:1800+30"]

1. e4 {[%emt 0:00:00]} c5 {[%emt 0:00:10]} 2. Nf3 {[%emt 0:00:00]} d6 {[%emt 0:00:12]} 3. d3 {[%emt 0:00:31]} Nc6 {[%emt 0:02:22]} 4. g3 {[%emt 0:00:19]} g6 {[%emt 0:00:50]} 5. Bg2 {[%emt 0:00:06]} Bg7 {[%emt 0:00:17]} 6. O-O {[%emt 0:00:07]} e6 {[%emt 0:01:59]} 7. Re1 {[%emt 0:00:09]} Nge7 {[%emt 0:00:20]} 8. c3 {[%emt 0:00:23]} O-O {[%emt 0:01:24]} 9. d4 {[%emt 0:00:56]} cxd4 {[%emt 0:00:48]} 10. cxd4 {[%emt 0:00:07]} d5 {[%emt 0:00:42]} 11. e5 {[%emt 0:00:05]} b6 {[%emt 0:00:23]} 12. Nc3 {[%emt 0:05:14]} Bd7 {[%emt 0:05:07]} 13. Bf4 {[%emt 0:08:14]} Rc8 {[%emt 0:04:36]} 14. Qd2 {[%emt 0:03:40]} Na5 {[%emt 0:01:09]} 15. b3 {[%emt 0:03:48]} b5 {[%emt 0:13:18]} 16. Nd1 {[%emt 0:10:43]} Nac6 {[%emt 0:08:34]} 17. Ne3 {[%emt 0:03:14]} Nf5 {[%emt 0:13:12]} 18. Nxf5 {[%emt 0:07:53]} exf5 {[%emt 0:00:10]} 19. Bh6 {[%emt 0:03:21]} Be6 {[%emt 0:07:54]} 20. Bxg7 {[%emt 0:04:04]} Kxg7 {[%emt 0:00:04]} 21. Rec1 {[%emt 0:05:33]} Qb6 {[%emt 0:05:13]} 22. b4 {[%emt 0:10:33]} a5 {[%emt 0:00:48]} 23. a3 {[%emt 0:00:16]} axb4 {[%emt 0:11:06]} 24. axb4 {[%emt 0:00:34]} Ra8 {[%emt 0:00:29]} 25. Bf1 {[%emt 0:03:32]} f4 {[%emt 0:17:18]} 26. Qxf4 {[%emt 0:05:33]} Nxb4 {[%emt 0:01:19]} 27. Rab1 {[%emt 0:01:43]} Ra4 {[%emt 0:01:42]} 28. Qf6+ {[%emt 0:00:14]} Kg8 {[%emt 0:00:09]} 29. Rc5 {[%emt 0:00:13]} Na2 {[%emt 0:02:37]} 30. Bxb5 {[%emt 0:05:08]} Ra3 {[%emt 0:00:17]} 31. Bd3 {[%emt 0:10:51]} Qd8 {[%emt 0:00:43]} 32. Qxd8 {[%emt 0:00:08]} Rxd8 {[%emt 0:00:00]} 33. Ne1 {[%emt 0:01:20]} Rda8 {[%emt 0:00:58]} 34. f4 {[%emt 0:01:32]} R8a4 {[%emt 0:00:35]} 35. Bb5 {[%emt 0:00:44]} Ra5 {[%emt 0:00:39]} 36. Be2 {[%emt 0:02:28]} Rxc5 {[%emt 0:00:22]} 37. dxc5 {[%emt 0:00:05]} Nc3 {[%emt 0:00:11]} 38. Rb8+ {[%emt 0:00:06]} Kg7 {[%emt 0:00:01]} 39. Bd3 {[%emt 0:00:46]} Ra7 {[%emt 0:01:17]} 40. Rb3 {[%emt 0:00:00]} d4 {[%emt 0:00:01]} 41. Rb4 {[%emt 0:01:18]} Rc7 {[%emt 0:00:28]} 42. Nf3 {[%emt 0:06:49]} Rxc5 {[%emt 0:11:33]} 43. Nxd4 Bg4 {[%emt 0:00:42]} 44. Bc4 {[%emt 0:07:57]} Nd1 {[%emt 0:02:39]} 45. Bb3 {[%emt 0:02:01]} Rc1 {[%emt 0:11:12]} 46. Rb7 {[%emt 0:04:42]} Nc3+ {[%emt 0:02:29]} 47. Kg2 {[%emt 0:01:27]} Rb1 {[%emt 0:00:27]} 48. Rxf7+ {[%emt 0:01:25]} Kh6 {[%emt 0:00:13]} 49. h3 {[%emt 0:01:24]} Rb2+ {[%emt 0:00:08]} 50. Bc2 {[%emt 0:00:16]} Bd1 {[%emt 0:01:45]} 51. g4 {[%emt 0:00:27]} Ne4 {[%emt 0:00:31]} 52. g5+ {[%emt 0:01:16]} Nxg5 {[%emt 0:00:02]} 53. fxg5+ {[%emt 0:00:06]} Kxg5 {[%emt 0:00:07]} 54. Rf2 {[%emt 0:00:13]} Bxc2 {[%emt 0:00:24]} 55. Nxc2 {[%emt 0:00:05]} Rb5 {[%emt 0:00:21]} 56. Re2 {[%emt 0:00:06]} Rb7 {[%emt 0:00:06]} 57. Nd4 {[%emt 0:00:11]} Re7 {[%emt 0:00:03]} 58. e6 {[%emt 0:00:28]} Kf6 {[%emt 0:00:15]} 59. Rf2+ Kg7 {[%emt 0:00:10]} 60. Kf3 {[%emt 0:00:26]} 1-0

[Event "EYCC 2017"]
[Site "Mamaia"]
[Date "2017.09.14"]
[Round "9"]
[White "Musyuk, Lior"]
[Black "Luczak, Filip"]
[Result "1/2-1/2"]
[ECO "B51"]
[WhiteElo "2087"]
[BlackElo "1866"]
[Annotator "NA RC"]
[PlyCount "32"]
[EventDate "2017.??.??"]
[EventType "swiss"]
[EventCountry "ROU"]
[SourceTitle "playchess.com"]
[Source "ChessBase"]
[SourceQuality "1"]
[TimeControl "40/5400+30:1800+30"]

1. e4 {[%emt 0:00:00]} c5 {[%emt 0:00:07]} 2. Nf3 {[%emt 0:00:00]} d6 {[%emt 0:00:02]} 3. Bb5+ {[%emt 0:00:00]} Nd7 {[%emt 0:00:22]} 4. d4 {[%emt 0:00:00]} cxd4 {[%emt 0:00:06]} 5. Qxd4 {[%emt 0:00:11]} e5 {[%emt 0:01:10]} 6. Qd3 {[%emt 0:00:46]} a6 {[%emt 0:00:13]} 7. Bxd7+ {[%emt 0:00:11]} Bxd7 {[%emt 0:00:01]} 8. c4 {[%emt 0:00:10]} h6 {[%emt 0:02:07]} 9. Nc3 {[%emt 0:01:22]} Nf6 {[%emt 0:00:27]} 10. Nd2 {[%emt 0:00:39]} Be7 {[%emt 0:01:44]} 11. a4 {[%emt 0:01:33]} O-O {[%emt 0:00:46]} 12. Nf1 {[%emt 0:01:07]} b5 {[%emt 0:10:34]} 13. Ne3 {[%emt 0:08:55]} bxc4 {[%emt 0:02:29]} 14. Qxc4 {[%emt 0:01:28]} Be6 {[%emt 0:02:20]} 15. Qd3 {[%emt 0:01:40]} Nd7 16. b4 a5 1/2-1/2

[Event "EYCC 2017"]
[Site "Mamaia"]
[Date "2017.09.14"]
[Round "9"]
[White "Redondo Benavente, Ana"]
[Black "Nastase, Andreea-Cristina"]
[Result "1-0"]
[ECO "B22"]
[WhiteElo "2087"]
[BlackElo "1986"]
[Annotator "NA RC"]
[PlyCount "45"]
[EventDate "2017.??.??"]
[EventType "swiss"]
[EventCountry "ROU"]
[SourceTitle "playchess.com"]
[Source "ChessBase"]
[SourceQuality "1"]
[TimeControl "40/5400+30:1800+30"]

1. e4 {[%emt 0:00:00]} c5 {[%emt 0:00:03]} 2. c3 {[%emt 0:00:00]} Nf6 {[%emt 0:00:04]} 3. e5 {[%emt 0:00:00]} Nd5 {[%emt 0:00:04]} 4. d4 {[%emt 0:00:14]} e6 {[%emt 0:00:25]} 5. Nf3 {[%emt 0:00:32]} cxd4 {[%emt 0:00:00]} 6. cxd4 {[%emt 0:00:00]} b6 {[%emt 0:00:00]} 7. Nc3 {[%emt 0:01:03]} Nxc3 {[%emt 0:00:00]} 8. bxc3 {[%emt 0:00:10]} Bb7 {[%emt 0:00:00]} 9. Bd3 {[%emt 0:00:58]} Be7 {[%emt 0:01:25]} 10. O-O {[%emt 0:01:00]} O-O {[%emt 0:04:55]} 11. Nd2 {[%emt 0:01:39]} d6 {[%emt 0:01:58]} 12. f4 {[%emt 0:01:43]} dxe5 {[%emt 0:00:05]} 13. fxe5 {[%emt 0:00:34]} Bg5 {[%emt 0:01:28]} 14. Ne4 {[%emt 0:04:38]} Bxc1 {[%emt 0:00:08]} 15. Rxc1 {[%emt 0:00:13]} Ba6 {[%emt 0:05:44]} 16. Bxa6 {[%emt 0:06:58]} Nxa6 {[%emt 0:00:06]} 17. Qh5 {[%emt 0:00:23]} Qd5 {[%emt 0:09:09]} 18. Ng5 {[%emt 0:07:37]} h6 {[%emt 0:00:37]} 19. Nxf7 {[%emt 0:03:08]} Qe4 {[%emt 0:02:10]} 20. Rce1 {[%emt 0:05:17]} Qc2 {[%emt 0:05:01]} 21. Re3 {[%emt 0:04:06]} Nc7 {[%emt 0:10:41]} 22. Nxh6+ {[%emt 0:11:04]} gxh6 {[%emt 0:00:12]} 23. Rg3+ {[%emt 0:00:01]} 1-0

[Event "EYCC 2017"]
[Site "Mamaia"]
[Date "2017.09.14"]
[Round "9"]
[White "Krasteva, Beloslava"]
[Black "Khamenya, Vitalia"]
[Result "1-0"]
[ECO "E92"]
[WhiteElo "2048"]
[BlackElo "1853"]
[Annotator "NA RC"]
[PlyCount "113"]
[EventDate "2017.??.??"]
[EventType "swiss"]
[EventCountry "ROU"]
[SourceTitle "playchess.com"]
[Source "ChessBase"]
[SourceQuality "1"]
[TimeControl "40/5400+30:1800+30"]

1. d4 {[%emt 0:00:00]} Nf6 {[%emt 0:00:08]} 2. c4 {[%emt 0:00:00]} g6 {[%emt 0:00:06]} 3. Nc3 {[%emt 0:00:05]} Bg7 {[%emt 0:00:06]} 4. e4 {[%emt 0:00:17]} d6 {[%emt 0:00:26]} 5. Nf3 {[%emt 0:00:21]} O-O {[%emt 0:00:08]} 6. Be2 {[%emt 0:00:19]} e5 {[%emt 0:01:03]} 7. d5 {[%emt 0:00:24]} a5 {[%emt 0:00:53]} 8. Be3 {[%emt 0:02:15]} Na6 {[%emt 0:01:47]} 9. a3 {[%emt 0:02:49]} Bd7 {[%emt 0:01:43]} 10. Nd2 {[%emt 0:02:46]} Ne8 {[%emt 0:04:45]} 11. O-O {[%emt 0:02:10]} f5 {[%emt 0:03:33]} 12. f3 {[%emt 0:02:11]} f4 {[%emt 0:02:54]} 13. Bf2 {[%emt 0:00:14]} g5 {[%emt 0:01:39]} 14. b4 {[%emt 0:08:03]} axb4 {[%emt 0:04:01]} 15. axb4 {[%emt 0:00:09]} Nxb4 {[%emt 0:21:49]} 16. Rb1 {[%emt 0:14:46]} Na2 {[%emt 0:02:32]} 17. Nxa2 {[%emt 0:01:16]} Rxa2 {[%emt 0:00:06]} 18. Rxb7 {[%emt 0:00:47]} Qa8 {[%emt 0:04:22]} 19. Rb1 {[%emt 0:01:55]} Ba4 {[%emt 0:03:02]} 20. Qe1 {[%emt 0:03:58]} Qa5 {[%emt 0:09:21]} 21. Nb3 {[%emt 0:01:20]} Qxe1 {[%emt 0:00:46]} 22. Rfxe1 {[%emt 0:00:15]} Nf6 {[%emt 0:01:07]} 23. Nc1 {[%emt 0:07:43]} Ra3 {[%emt 0:04:45]} 24. c5 {[%emt 0:02:06]} Nd7 {[%emt 0:03:36]} 25. c6 {[%emt 0:04:42]} Nc5 {[%emt 0:03:42]} 26. Bxc5 {[%emt 0:11:12]} dxc5 {[%emt 0:00:08]} 27. Rb7 {[%emt 0:00:50]} Rc8 {[%emt 0:01:54]} 28. Nd3 {[%emt 0:10:06]} Rc3 {[%emt 0:03:22]} 29. Nb2 {[%emt 0:01:30]} Bb3 {[%emt 0:02:21]} 30. d6 {[%emt 0:07:51]} cxd6 {[%emt 0:02:44]} 31. Rxb3 {[%emt 0:00:32]} Rxb3 {[%emt 0:01:29]} 32. Bc4+ {[%emt 0:00:08]} Kf8 {[%emt 0:00:10]} 33. Bxb3 {[%emt 0:00:09]} Rxc6 {[%emt 0:00:04]} 34. Bd5 {[%emt 0:01:20]} Ra6 {[%emt 0:01:56]} 35. Nc4 {[%emt 0:00:49]} Ke7 {[%emt 0:01:15]} 36. Rb1 {[%emt 0:00:28]} Bf8 {[%emt 0:01:56]} 37. Rb7+ {[%emt 0:01:04]} Kd8 {[%emt 0:01:24]} 38. Rxh7 {[%emt 0:01:57]} Ra1+ {[%emt 0:00:59]} 39. Kf2 {[%emt 0:00:07]} Ra2+ {[%emt 0:00:06]} 40. Kf1 {[%emt 0:00:00]} Ra1+ {[%emt 0:01:28]} 41. Ke2 {[%emt 0:00:16]} Ra2+ {[%emt 0:00:12]} 42. Nd2 {[%emt 0:00:26]} Ra3 {[%emt 0:00:37]} 43. Rh8 {[%emt 0:03:47]} Ke7 {[%emt 0:00:58]} 44. Rg8 {[%emt 0:00:36]} Re3+ {[%emt 0:09:33]} 45. Kd1 {[%emt 0:00:41]} Ra3 {[%emt 0:01:18]} 46. Rxg5 {[%emt 0:00:30]} Kf6 {[%emt 0:00:27]} 47. Rf5+ {[%emt 0:00:29]} Ke7 {[%emt 0:00:27]} 48. h4 {[%emt 0:01:05]} Ra1+ {[%emt 0:00:18]} 49. Ke2 {[%emt 0:00:25]} Rg1 {[%emt 0:00:23]} 50. Rg5 {[%emt 0:01:13]} Bh6 {[%emt 0:01:12]} 51. Rg6 {[%emt 0:01:02]} Bf8 {[%emt 0:00:19]} 52. Nc4 {[%emt 0:03:27]} Rh1 {[%emt 0:01:02]} 53. Nxd6 {[%emt 0:00:49]} Kd7 {[%emt 0:02:54]} 54. Nc4 {[%emt 0:01:18]} Rxh4 {[%emt 0:00:30]} 55. Nxe5+ {[%emt 0:00:38]} Kc7 {[%emt 0:01:55]} 56. Rc6+ {[%emt 0:00:44]} Kd8 {[%emt 0:00:51]} 57. Ng6 {[%emt 0:00:36]} 1-0

[Event "EYCC 2017"]
[Site "Mamaia"]
[Date "2017.09.14"]
[Round "9"]
[White "Allahverdiyeva, Ayan"]
[Black "Stepanyan, Eva"]
[Result "0-1"]
[ECO "C91"]
[WhiteElo "2042"]
[BlackElo "1927"]
[Annotator "NA RC"]
[PlyCount "80"]
[EventDate "2017.??.??"]
[EventType "swiss"]
[EventCountry "ROU"]
[SourceTitle "playchess.com"]
[Source "ChessBase"]
[SourceQuality "1"]
[TimeControl "40/5400+30:1800+30"]

1. e4 {[%emt 0:00:00]} e5 {[%emt 0:00:11]} 2. Nf3 {[%emt 0:00:00]} Nc6 {[%emt 0:00:08]} 3. Bb5 {[%emt 0:00:00]} a6 {[%emt 0:00:24]} 4. Ba4 {[%emt 0:00:00]} Nf6 {[%emt 0:00:12]} 5. O-O {[%emt 0:00:10]} Be7 {[%emt 0:00:07]} 6. Re1 {[%emt 0:00:14]} b5 {[%emt 0:00:34]} 7. Bb3 {[%emt 0:00:04]} d6 {[%emt 0:00:44]} 8. c3 {[%emt 0:00:45]} O-O {[%emt 0:00:09]} 9. d4 {[%emt 0:00:10]} Bg4 {[%emt 0:00:49]} 10. Be3 {[%emt 0:00:32]} h6 {[%emt 0:09:36] C91: Closed Ruy Lopez: 7...d6 8 c3 0-0 9 d4} (10... Bh5 11. Nbd2 Na5 12. Bc2 Ng4 13. Qe2 Nxe3 14. Qxe3 Bxf3 15. Nxf3 Nc4 16. Qc1 Bf6 17. a4 b4 18. cxb4 exd4 19. Bd3 {½-½ (48) Nepomniachtchi,I (2742)-Svidler,P (2749) Saint Louis 2017}) 11. Nbd2 {[%emt 0:02:05]} Re8 {[%emt 0:03:31]} 12. Bc2 {[%emt 0:11:03]} Bf8 {[%emt 0:03:17]} 13. d5 {[%emt 0:01:11]} Na5 {[%emt 0:01:28]} 14. Nf1 {[%emt 0:00:52]} Qc8 $146 {[%emt 0:01:16]} ({Predecessor:} 14... c5 15. h3 Bd7 16. g4 g6 17. Ng3 Bg7 18. Kh2 Kh7 19. g5 {1-0 (39) Premanath,D (1819)-Dragieva,D (1727) Kemer 2009}) 15. h3 {[%emt 0:01:42]} Bd7 {[%emt 0:00:24]} 16. Ng3 {[%emt 0:02:34]} c6 {[%emt 0:02:09]} (16... Nc4 $5 {[%cal Rc4b2]}) 17. dxc6 {[%emt 0:12:28]} Qxc6 {[%emt 0:00:20]} 18. Nh4 {[%emt 0:05:11]} Nc4 {[%emt 0:03:51]} 19. Bc1 {[%emt 0:00:53]} Be6 {[%emt 0:05:08]} 20. Qf3 {[%emt 0:05:04]} Nd7 {[%emt 0:11:38]} 21. Nhf5 {[%emt 0:03:46]} Kh7 {[%emt 0:05:12]} (21... a5 $11) 22. Ne3 $11 {[%emt 0:12:58]} (22. Nd4 $16 Qc7 23. Nxe6 fxe6 24. Nh5) 22... g6 {[%emt 0:09:37]} 23. Ng4 {[%emt 0:16:28]} Bg7 {[%emt 0:04:40]} 24. Nf5 {[%emt 0:05:50]} Bxf5 {[%emt 0:09:24]} 25. exf5 {[%emt 0:00:16]} d5 {[%emt 0:02:15]} 26. Qg3 {[%emt 0:05:14]} e4 {[%emt 0:04:25]} 27. Qh4 {[%emt 0:00:13]} gxf5 {[%emt 0:01:29]} 28. Ne3 {[%emt 0:01:09]} Qe6 {[%emt 0:04:45]} 29. Qh5 {[%emt 0:02:14]} Nxe3 {[%emt 0:02:20]} 30. Bxe3 {[%emt 0:01:03]} Be5 {[%emt 0:02:38]} 31. f4 {[%emt 0:03:16]} Bc7 {[%emt 0:01:54]} 32. g4 {[%emt 0:01:30]} Rg8 {[%emt 0:02:50]} 33. Kh1 {[%emt 0:02:16]} fxg4 {[%emt 0:01:30]} 34. f5 {[%emt 0:00:09]} Qd6 {[%emt 0:00:36]} 35. hxg4 {[%emt 0:01:22]} Rxg4 {[%emt 0:03:23]} 36. Bxe4 {[%emt 0:01:44]} dxe4 {[%emt 0:03:35]} 37. Rad1 {[%emt 0:00:07]} Qg3 {[%emt 0:00:40]} 38. Qxf7+ {[%emt 0:01:47]} Rg7 {[%emt 0:00:06]} 39. Qg6+ {[%emt 0:00:38]} Rxg6 {[%emt 0:00:16]} 40. fxg6+ {[%emt 0:00:00]} Kg8 {[%emt 0:00:12]} 0-1

[Event "EYCC 2017"]
[Site "Mamaia"]
[Date "2017.09.14"]
[Round "9"]
[White "Mironenko, Galina"]
[Black "Zhurova, Anna"]
[Result "1-0"]
[ECO "A00"]
[WhiteElo "2035"]
[BlackElo "1864"]
[Annotator "NA RC"]
[PlyCount "83"]
[EventDate "2017.??.??"]
[EventType "swiss"]
[EventCountry "ROU"]
[SourceTitle "playchess.com"]
[Source "ChessBase"]
[SourceQuality "1"]
[TimeControl "40/5400+30:1800+30"]

1. g3 {[%emt 0:00:00]} d5 {[%emt 0:11:23]} 2. Bg2 {[%emt 0:00:00]} Nf6 {[%emt 0:00:47]} 3. Nf3 {[%emt 0:00:05]} e6 {[%emt 0:00:56]} 4. c4 {[%emt 0:00:07]} Be7 {[%emt 0:01:24]} 5. cxd5 {[%emt 0:00:23]} exd5 {[%emt 0:00:34]} 6. O-O {[%emt 0:00:10]} O-O {[%emt 0:00:33]} 7. Qc2 {[%emt 0:00:07]} c5 {[%emt 0:00:39]} 8. d4 {[%emt 0:01:40]} c4 {[%emt 0:01:28]} 9. Nc3 {[%emt 0:10:37]} Nc6 {[%emt 0:01:08]} 10. Bg5 {[%emt 0:06:44]} h6 {[%emt 0:03:29]} 11. Bxf6 {[%emt 0:09:13]} Bxf6 {[%emt 0:00:19]} 12. Rad1 {[%emt 0:01:59]} Re8 {[%emt 0:06:24]} 13. b3 {[%emt 0:21:40]} Bg4 {[%emt 0:06:47]} 14. e3 {[%emt 0:09:54]} Rc8 {[%emt 0:12:57]} 15. bxc4 {[%emt 0:04:46]} dxc4 {[%emt 0:00:15]} 16. Rb1 {[%emt 0:05:10]} Qd7 {[%emt 0:09:07]} 17. Qb2 {[%emt 0:03:01]} Bf5 {[%emt 0:04:51]} 18. Rbc1 {[%emt 0:05:02]} a6 {[%emt 0:03:23]} 19. a4 {[%emt 0:06:13]} Rb8 {[%emt 0:06:05]} 20. Nd2 {[%emt 0:05:30]} Bd3 {[%emt 0:04:23]} 21. Rfd1 {[%emt 0:03:10]} b5 {[%emt 0:03:01]} 22. axb5 {[%emt 0:00:50]} axb5 {[%emt 0:00:25]} 23. Nd5 {[%emt 0:01:30]} Be7 {[%emt 0:01:56]} 24. Nxe7+ {[%emt 0:00:45]} Rxe7 {[%emt 0:10:01]} 25. Nb3 {[%emt 0:00:30]} Qd6 {[%emt 0:00:49]} 26. Bxc6 {[%emt 0:01:24]} Qxc6 {[%emt 0:00:59]} 27. Rxd3 {[%emt 0:00:31]} Qg6 {[%emt 0:00:00]} 28. Rdc3 {[%emt 0:00:21]} cxb3 {[%emt 0:00:05]} 29. Qxb3 {[%emt 0:00:33]} Qa6 {[%emt 0:02:11]} 30. Qb4 {[%emt 0:00:40]} Ra7 {[%emt 0:01:37]} 31. Rc5 {[%emt 0:01:05]} Kh8 {[%emt 0:02:05]} 32. Rb1 {[%emt 0:00:30]} Rab7 {[%emt 0:00:11]} 33. d5 {[%emt 0:00:41]} Rb6 {[%emt 0:02:03]} 34. Rbc1 {[%emt 0:00:34]} Rf6 {[%emt 0:00:35]} 35. e4 {[%emt 0:00:55]} Qa2 {[%emt 0:00:55]} 36. R5c2 {[%emt 0:00:16]} Qa6 {[%emt 0:00:24]} 37. e5 {[%emt 0:00:33]} Rf5 {[%emt 0:00:29]} 38. Qe4 {[%emt 0:00:24]} g6 {[%emt 0:00:49]} 39. g4 {[%emt 0:00:44]} Rg5 {[%emt 0:00:26]} 40. h4 {[%emt 0:00:00]} f5 {[%emt 0:00:09]} 41. exf6 {[%emt 0:00:32]} Qxf6 {[%emt 0:00:04]} 42. hxg5 {[%emt 0:00:16]} 1-0

[Event "EYCC 2017"]
[Site "Mamaia"]
[Date "2017.09.14"]
[Round "9"]
[White "Rogozenco, Teodora"]
[Black "Karykowska, Anna"]
[Result "1-0"]
[ECO "D70"]
[WhiteElo "2024"]
[BlackElo "1884"]
[Annotator "NA RC"]
[PlyCount "53"]
[EventDate "2017.??.??"]
[EventType "swiss"]
[EventCountry "ROU"]
[SourceTitle "playchess.com"]
[Source "ChessBase"]
[SourceQuality "1"]
[TimeControl "40/5400+30:1800+30"]

1. d4 {[%emt 0:00:00]} d5 {[%emt 0:00:12]} 2. c4 {[%emt 0:00:01]} c6 {[%emt 0:00:28]} 3. Nf3 {[%emt 0:01:49]} Nf6 {[%emt 0:04:25]} 4. Nbd2 {[%emt 0:03:21]} Bf5 {[%emt 0:03:38]} 5. Nh4 {[%emt 0:00:11]} Bg6 {[%emt 0:01:00]} 6. Qb3 {[%emt 0:00:12]} Qb6 {[%emt 0:03:41]} 7. Qh3 {[%emt 0:00:29]} Nbd7 {[%emt 0:07:07]} 8. Nxg6 {[%emt 0:00:14]} fxg6 {[%emt 0:01:04]} 9. e3 {[%emt 0:03:35]} O-O-O {[%emt 0:06:01]} 10. Be2 {[%emt 0:04:43]} Kb8 {[%emt 0:02:40]} 11. c5 {[%emt 0:07:41]} Qc7 {[%emt 0:01:50]} 12. Qe6 {[%emt 0:14:53]} g5 {[%emt 0:04:25]} 13. b4 {[%emt 0:04:28]} g6 {[%emt 0:04:27]} 14. b5 {[%emt 0:08:00]} Bh6 {[%emt 0:04:54]} 15. Rb1 {[%emt 0:01:24]} Ka8 {[%emt 0:04:49]} 16. O-O {[%emt 0:01:55]} Nf8 {[%emt 0:03:22]} 17. Qh3 {[%emt 0:00:39]} Bg7 {[%emt 0:01:02]} 18. b6 {[%emt 0:17:07]} axb6 {[%emt 0:04:02]} 19. cxb6 {[%emt 0:01:45]} Qd6 {[%emt 0:03:52]} 20. e4 {[%emt 0:01:09]} Nxe4 {[%emt 0:06:20]} 21. Ba3 {[%emt 0:05:07]} Qf6 {[%emt 0:05:40]} 22. Nxe4 {[%emt 0:05:58]} dxe4 {[%emt 0:00:25]} 23. Bc5 {[%emt 0:01:46]} Kb8 {[%emt 0:09:23]} 24. Qa3 {[%emt 0:00:12]} Nd7 {[%emt 0:05:57]} 25. Bxe7 {[%emt 0:00:55]} Qf7 {[%emt 0:00:33]} 26. Bd6+ {[%emt 0:00:20]} Kc8 {[%emt 0:00:05]} 27. Bg4 {[%emt 0:01:49]} 1-0

[Event "EYCC 2017"]
[Site "Mamaia"]
[Date "2017.09.14"]
[Round "9"]
[White "Bulatova, Kamaliya"]
[Black "Raccanello, Marianna"]
[Result "1-0"]
[ECO "D00"]
[WhiteElo "2014"]
[BlackElo "1906"]
[Annotator "NA RC"]
[PlyCount "95"]
[EventDate "2017.??.??"]
[EventType "swiss"]
[EventCountry "ROU"]
[SourceTitle "playchess.com"]
[Source "ChessBase"]
[SourceQuality "1"]
[TimeControl "40/5400+30:1800+30"]

1. d4 {[%emt 0:00:00]} d5 {[%emt 0:00:09]} 2. Bf4 {[%emt 0:00:00]} Nf6 {[%emt 0:00:10]} 3. e3 {[%emt 0:00:00]} c5 {[%emt 0:00:09]} 4. c3 {[%emt 0:00:00]} Nc6 {[%emt 0:00:11]} 5. Nf3 {[%emt 0:02:07]} Qb6 {[%emt 0:00:09]} 6. b3 {[%emt 0:02:35]} Bf5 {[%emt 0:05:07]} 7. Bd3 {[%emt 0:02:49]} Bg6 {[%emt 0:04:28]} 8. O-O {[%emt 0:00:53]} e6 {[%emt 0:00:22]} 9. Qe2 {[%emt 0:08:41]} Be7 {[%emt 0:04:13]} 10. Nbd2 {[%emt 0:00:56]} O-O {[%emt 0:00:50]} 11. Ne5 {[%emt 0:02:54]} Rac8 {[%emt 0:10:38]} 12. Bg5 {[%emt 0:09:10]} Rfd8 {[%emt 0:06:27]} 13. f4 {[%emt 0:15:56]} Qa5 {[%emt 0:21:38]} 14. Bxg6 {[%emt 0:10:56]} hxg6 {[%emt 0:01:51]} 15. Qd3 {[%emt 0:03:39]} Re8 {[%emt 0:09:33]} 16. Rac1 $11 {[%emt 0:10:30]} b5 {[%emt 0:11:43]} 17. dxc5 {[%emt 0:09:47]} Nxe5 {[%emt 0:00:31]} 18. fxe5 {[%emt 0:00:05]} Nd7 {[%emt 0:00:10]} 19. Bxe7 {[%emt 0:02:54]} Rxe7 {[%emt 0:00:05]} 20. b4 {[%emt 0:00:27]} Nxe5 {[%emt 0:00:25]} 21. Qd4 {[%emt 0:00:56]} Qc7 {[%emt 0:00:07]} 22. Nf3 {[%emt 0:01:00]} Nc4 {[%emt 0:00:55]} 23. e4 {[%emt 0:03:34]} e5 {[%emt 0:03:38]} 24. Qd3 {[%emt 0:01:09]} Rd8 {[%emt 0:00:06]} 25. Qe2 {[%emt 0:00:29]} Red7 {[%emt 0:07:54]} 26. Ng5 {[%emt 0:01:25]} Qc6 {[%emt 0:01:30]} 27. Qg4 {[%emt 0:02:26]} f6 {[%emt 0:00:40]} 28. Qe6+ {[%emt 0:01:22]} Qxe6 {[%emt 0:00:10]} 29. Nxe6 {[%emt 0:00:01]} Re8 {[%emt 0:00:21]} 30. c6 {[%emt 0:01:35]} Rd6 {[%emt 0:00:28]} 31. Nc7 {[%emt 0:00:14]} Rb8 {[%emt 0:04:45]} 32. exd5 {[%emt 0:01:08]} Kf8 {[%emt 0:03:23]} 33. Rfd1 {[%emt 0:01:58]} Ke7 {[%emt 0:00:30]} 34. Kf2 {[%emt 0:00:29]} f5 {[%emt 0:01:01]} 35. Ra1 {[%emt 0:01:18]} Nb2 {[%emt 0:01:00]} 36. Rdb1 {[%emt 0:00:38]} Na4 {[%emt 0:00:04]} 37. Rb3 {[%emt 0:00:41]} Kd8 {[%emt 0:01:48]} 38. Ne6+ {[%emt 0:00:30]} Ke7 {[%emt 0:00:03]} 39. Rd1 {[%emt 0:00:31]} Nb6 {[%emt 0:00:38]} 40. Nc7 {[%emt 0:00:00]} Na4 {[%emt 0:01:00]} 41. Ra3 {[%emt 0:02:03]} a6 {[%emt 0:11:18]} 42. Nxa6 {[%emt 0:02:00]} Rc8 {[%emt 0:00:06]} 43. Rxa4 {[%emt 0:03:06]} bxa4 {[%emt 0:00:11]} 44. b5 {[%emt 0:00:03]} Ra8 {[%emt 0:02:26]} 45. c4 {[%emt 0:00:13]} Kd8 {[%emt 0:00:31]} 46. c5 {[%emt 0:00:30]} Rf6 {[%emt 0:00:09]} 47. d6 {[%emt 0:01:02]} Rf8 {[%emt 0:00:35]} 48. Nc7 {[%emt 0:00:37]} 1-0